lending/lending_fUSD_20240504
["ID","MTS","AMOUNT","RATE_DAILY","PERIOD"]
[325415461,1714855859732,-742.35,0.00041369,31]
[325415462,1714855859742,-689.2,0.00041369,31]
[325415463,1714855859752,-1351.7,0.00041369,31]
[325415464,1714855859763,-500.0,0.00041369,31]
[325415465,1714855859773,-540.28,0.00041369,31]
[325415466,1714855859784,-500.0,0.00041369,31]
[325415467,1714855859796,-500.0,0.00041369,31]
[325415468,1714855859807,-500.0,0.00041369,31]
[325415469,1714855859817,-1008.98,0.00041369,31]
[325415470,1714855859827,-593.01,0.00041369,31]
[325415471,1714855859837,-533.34,0.00041369,31]
[325415472,1714855859847,-500.0,0.00041369,31]
[325415473,1714855859857,-500.0,0.00041369,31]
[325415474,1714855859869,-500.0,0.00041369,31]
[325415475,1714855859880,-574.97,0.00041369,31]
[325415476,1714855859890,-998.25,0.00041369,31]
[325415477,1714855859900,-522.42,0.00041369,31]
[325415478,1714855859911,-625.76,0.00041369,31]
[325415479,1714855859921,-500.0,0.00041369,31]
[325415480,1714855859931,-500.0,0.00041369,31]
[325415481,1714855859941,-749.2,0.00041369,31]
[325415482,1714855859952,-500.0,0.00041369,2]
[325415483,1714855859964,-500.0,0.00041369,31]
[325415484,1714855859974,-163.51300358,0.00041369,31]
[325415485,1714855859986,-500.0,0.00041369,31]
[325415486,1714855859997,-500.0,0.00041369,31]
[325415487,1714855860008,-500.0,0.00041369,31]
[325415488,1714855860020,-500.0,0.00041369,31]
[325415489,1714855860029,-600.9,0.00041369,31]
[325415490,1714855860039,-500.0,0.00041369,31]
[325415491,1714855860049,-500.0,0.00041369,31]
[325415492,1714855860059,-1156.41,0.00041369,31]
[325415493,1714855860070,-1076.21,0.00041369,31]
[325415494,1714855860080,-500.0,0.00041369,31]
[325415495,1714855860093,-1124.09,0.00041369,31]
[325415496,1714855860104,-500.0,0.00041369,31]
[325415497,1714855860114,-500.0,0.00041369,30]
[325415498,1714855860125,-605.88,0.00041369,31]
[325415499,1714855860134,-1182.29,0.00041369,31]
[325415500,1714855860144,-500.0,0.00041369,31]
[325415501,1714855860155,-500.0,0.00041369,31]
[325415502,1714855860165,-500.0,0.00041369,31]
[325415503,1714855860175,-500.0,0.00041369,31]
[325415504,1714855860186,-886.35,0.00041369,31]
[325415505,1714855860196,-543.0,0.00041369,31]
[325415506,1714855860207,-500.0,0.00041369,31]
[325415507,1714855860217,-1125.11,0.00041369,31]
[325415508,1714855860228,-500.0,0.00041369,31]
[325415509,1714855860240,-500.0,0.00041369,31]
[325415510,1714855860532,-1151.02,0.00041369,31]
[325415511,1714855860541,-683.32,0.00041369,31]
[325415512,1714855860551,-500.0,0.00041369,31]
[325415513,1714855860560,-500.0,0.00041369,31]
[325415514,1714855860570,-500.0,0.00041369,31]
[325415515,1714855860580,-500.0,0.00041369,31]
[325415516,1714855860592,-500.0,0.00041369,31]
[325415517,1714855860602,-501.27976214,0.00041369,31]
[325415518,1714855860612,-500.0,0.00041369,31]
[325415519,1714855860622,-1134.73,0.00041369,31]
[325415520,1714855860633,-500.0,0.00041369,31]
[325415521,1714855860643,-500.0,0.00041369,31]
[325415522,1714855860652,-864.46,0.00041369,31]
[325415523,1714855860661,-500.0,0.00041369,31]
[325415524,1714855860670,-575.12,0.00041369,31]
[325415525,1714855860679,-500.0,0.00041369,31]
[325415526,1714855860690,-500.0,0.00041369,31]
[325415527,1714855860700,-500.0,0.00041369,31]
[325415528,1714855860710,-500.0,0.00041369,31]
[325415529,1714855860721,-500.0,0.00041369,31]
[325415530,1714855860731,-502.9377793,0.00041369,31]
[325415531,1714855860742,-500.0,0.00041369,31]
[325415532,1714855860752,-500.0,0.00041369,31]
[325415533,1714855860763,-505.43998005,0.00041369,31]
[325415534,1714855860772,-1399.28,0.00041369,31]
[325415535,1714855860782,-500.0,0.00041369,31]
[325415536,1714855860796,-500.0,0.00041369,31]
[325415537,1714855860806,-1259.61,0.00041369,31]
[325415538,1714855860815,-500.0,0.00041369,31]
[325415539,1714855860827,-500.0,0.00041369,31]
[325415540,1714855860836,-633.55,0.00041369,31]
[325415541,1714855860848,-500.0,0.00041369,31]
[325415542,1714855860860,-500.72,0.00041369,31]
[325415543,1714855860871,-500.0,0.00041369,31]
[325415544,1714855860880,-500.0,0.00041369,31]
[325415545,1714855860890,-503.90961843,0.00041369,31]
[325415546,1714855860900,-692.69,0.00041369,31]
[325415547,1714855860909,-500.0,0.00041369,31]
[325415548,1714855860919,-500.0,0.00041369,31]
[325415549,1714855860928,-704.86,0.00041369,31]
[325415550,1714855860938,-500.0,0.00041369,31]
[325415551,1714855860947,-1306.3,0.00041369,31]
[325415552,1714855860957,-686.31,0.00041369,31]
[325415553,1714855860966,-696.4,0.00041369,31]
[325415554,1714855860975,-1142.73,0.00041369,31]
[325415555,1714855860985,-500.0,0.00041369,31]
[325415556,1714855860994,-500.0,0.00041369,31]
[325415557,1714855861004,-500.0,0.00041369,31]
[325415558,1714855861013,-500.0,0.00041369,31]
[325415559,1714855861022,-1302.41,0.00041369,31]
[325415560,1714855861032,-614.06,0.00041369,31]
[325415561,1714855861041,-500.0,0.00041369,31]
[325415562,1714855861050,-500.0,0.00041369,31]
[325415563,1714855861059,-1017.78,0.00041369,31]
[325415564,1714855861068,-500.0,0.00041369,31]
[325415565,1714855861077,-500.0,0.00041369,31]
[325415566,1714855861087,-500.0,0.00041369,31]
[325415567,1714855861097,-1459.1,0.00041369,31]
[325415568,1714855861106,-500.0,0.00041369,2]
[325415569,1714855861115,-500.0,0.00041369,31]
[325415570,1714855861125,-500.0,0.00041369,31]
[325415571,1714855861134,-500.0,0.00041369,31]
[325415572,1714855861144,-500.0,0.00041369,31]
[325415573,1714855861152,-500.0,0.00041369,31]
[325415574,1714855861162,-1481.97,0.00041369,31]
[325415575,1714855861172,-504.33,0.00041369,31]
[325415576,1714855861181,-500.0,0.00041369,31]
[325415577,1714855861193,-791.55,0.00041369,31]
[325415578,1714855861203,-500.0,0.00041369,31]
[325415579,1714855861212,-500.0,0.00041369,31]
[325415580,1714855861221,-2003.08,0.00041369,31]
[325415581,1714855861231,-500.0,0.00041369,31]
[325415582,1714855861240,-1248.31,0.00041369,31]
[325415583,1714855861249,-500.0,0.00041369,31]
[325415584,1714855861259,-1269.44,0.00041369,31]
[325415585,1714855861268,-500.0,0.00041369,31]
[325415586,1714855861278,-500.0,0.00041369,31]
[325415587,1714855861289,-500.0,0.00041369,31]
[325415588,1714855861300,-500.0,0.00041369,31]
[325415589,1714855861310,-500.0,0.00041369,31]
[325415590,1714855861320,-500.0,0.00041369,31]
[325415591,1714855861330,-500.0,0.00041369,31]
[325415592,1714855861340,-500.0,0.00041369,31]
[325415593,1714855861350,-500.0,0.00041369,31]
[325415594,1714855861360,-500.0,0.00041369,31]
[325415595,1714855861369,-500.0,0.00041369,31]
[325415596,1714855861379,-500.0,0.00041369,31]
[325415597,1714855861388,-1030.52,0.00041369,31]
[325415598,1714855861398,-500.0,0.00041369,31]
[325415599,1714855861407,-500.0,0.00041369,31]
[325415600,1714855861417,-500.0,0.00041369,31]
[325415601,1714855861427,-500.0,0.00041369,31]
[325415602,1714855861438,-656.5,0.00041369,31]
[325415603,1714855861447,-841.88,0.00041369,31]
[325415604,1714855861458,-500.0,0.00041369,31]
[325415605,1714855861468,-500.0,0.00041369,31]
[325415606,1714855861477,-500.0,0.00041369,31]
[325415607,1714855861487,-500.0,0.00041369,31]
[325415608,1714855861497,-500.0,0.00041369,31]
[325415609,1714855861506,-599.22,0.00041369,31]
[325415610,1714855861516,-500.0,0.00041369,31]
[325415611,1714855861526,-1174.72,0.00041369,31]
[325415612,1714855861536,-500.0,0.00041369,31]
[325415613,1714855861546,-578.54752639,0.00041369,31]
[325415614,1714855861556,-764.58,0.00041369,31]
[325415615,1714855861565,-500.0,0.00041369,31]
[325415616,1714855861574,-500.0,0.00041369,31]
[325415617,1714855861584,-1110.59,0.00041369,31]
[325415618,1714855861593,-2223.93,0.00041369,31]
[325415619,1714855861603,-500.0,0.00041369,31]
[325415620,1714855861612,-500.0,0.00041369,31]
[325415621,1714855861623,-500.0,0.00041369,31]
[325415622,1714855861632,-500.0,0.00041369,31]
[325415623,1714855861642,-500.0,0.00041369,31]
[325415624,1714855861652,-500.0,0.00041369,31]
[325415625,1714855861663,-896.47,0.00041369,31]
[325415626,1714855861673,-765.9,0.00041369,31]
[325415627,1714855861683,-958.95,0.00041369,31]
[325415628,1714855861693,-500.0,0.00041369,31]
[325415629,1714855861702,-1169.82,0.00041369,31]
[325415630,1714855861712,-821.6,0.00041369,31]
[325415631,1714855861722,-500.0,0.00041369,31]
[325415632,1714855861732,-668.8,0.00041369,31]
[325415633,1714855861741,-500.0,0.00041369,31]
[325415634,1714855861750,-649.44,0.00041369,31]
[325415635,1714855861760,-1066.49,0.00041369,31]
[325415636,1714855861770,-500.0,0.00041369,31]
[325415637,1714855861780,-741.56,0.00041369,31]
[325415638,1714855861796,-1139.09,0.00041369,31]
[325415639,1714855861807,-500.0,0.00041369,31]
[325415640,1714855861818,-500.0,0.00041369,31]
[325415641,1714855861829,-500.0,0.00041369,31]
[325415642,1714855861839,-551.78,0.00041369,31]
[325415643,1714855861850,-500.0,0.00041369,31]
[325415644,1714855861860,-663.52,0.00041369,31]
[325415645,1714855861871,-500.0,0.00041369,31]
[325415646,1714855861880,-500.0,0.00041369,31]
[325415647,1714855861890,-500.0,0.00041369,31]
[325415648,1714855861900,-689.6,0.00041369,31]
[325415649,1714855861910,-500.0,0.00041369,31]
[325415650,1714855861920,-500.0,0.00041369,31]
[325415651,1714855861929,-500.0,0.00041369,31]
[325415652,1714855861940,-500.0,0.00041369,31]
[325415653,1714855861950,-500.0,0.00041369,7]
[325415654,1714855861960,-500.0,0.00041369,31]
[325415655,1714855861970,-962.05,0.00041369,7]
[325415656,1714855861979,-500.0,0.00041369,31]
[325415657,1714855861989,-500.0,0.00041369,31]
[325415658,1714855861999,-857.21,0.00041369,31]
[325415659,1714855862008,-811.65,0.00041369,31]
[325415660,1714855862018,-500.0,0.00041369,31]
[325415661,1714855862028,-1687.91,0.00041369,31]
[325415662,1714855862037,-500.0,0.00041369,31]
[325415663,1714855862047,-545.57,0.00041369,31]
[325415664,1714855862059,-500.0,0.00041369,31]
[325415665,1714855862069,-541.24,0.00041369,31]
[325415666,1714855862081,-500.0,0.00041369,31]
[325415667,1714855862092,-500.0,0.00041369,31]
[325415668,1714855862104,-500.0,0.00041369,31]
[325415669,1714855862114,-1379.32,0.00041369,31]
[325415670,1714855862123,-500.0,0.00041369,31]
[325415671,1714855862133,-500.0,0.00041369,31]
[325415672,1714855862142,-2099.73,0.00041369,31]
[325415673,1714855862151,-500.0,0.00041369,31]
[325415674,1714855862160,-500.0,0.00041369,31]
[325415675,1714855862170,-500.0,0.00041369,31]
[325415676,1714855862179,-500.0,0.00041369,31]
[325415677,1714855862189,-500.0,0.00041369,31]
[325415678,1714855862199,-500.0,0.00041369,31]
[325415679,1714855862208,-500.0,0.00041369,31]
[325415680,1714855862218,-971.23,0.00041369,31]
[325415681,1714855862228,-668.65,0.00041369,31]
[325415682,1714855862238,-614.51,0.00041369,31]
[325415683,1714855862247,-500.0,0.00041369,31]
[325415684,1714855862256,-1514.85,0.00041369,31]
[325415685,1714855862266,-570.97018506,0.00041369,31]
[325415686,1714855862275,-500.0,0.00041369,31]
[325415687,1714855862285,-500.0,0.00041369,31]
[325415688,1714855862294,-920.66,0.00041369,31]
[325415689,1714855862304,-500.0,0.00041369,31]
[325415690,1714855862314,-500.0,0.00041369,31]
[325415691,1714855862323,-500.0,0.00041369,31]
[325415692,1714855862333,-603.66566126,0.00041369,31]
[325415693,1714855862343,-500.0,0.00041369,31]
[325415694,1714855862352,-500.0,0.00041369,31]
[325415695,1714855862361,-500.0,0.00041369,31]
[325415696,1714855862371,-1348.37,0.00041369,31]
[325415697,1714855862380,-1840.05,0.00041369,31]
[325415698,1714855862389,-500.0,0.00041369,31]
[325415699,1714855862399,-500.0,0.00041369,31]
[325415700,1714855862408,-500.0,0.00041369,31]
[325415701,1714855862417,-500.0,0.00041369,31]
[325415702,1714855862426,-500.0,0.00041369,31]
[325415703,1714855862436,-500.0,0.00041369,31]
[325415704,1714855862445,-500.0,0.00041369,31]
[325415705,1714855862455,-575.68,0.00041369,31]
[325415706,1714855862464,-580.65556959,0.00041369,31]
[325415707,1714855862473,-1200.34,0.00041369,31]
[325415708,1714855862483,-500.0,0.00041369,2]
[325415709,1714855862492,-500.0,0.00041369,31]
[325415710,1714855862502,-218.50665504,0.00041369,31]
[325415711,1714855862511,-197.08166266,0.00041369,31]
[325415712,1714855862521,-1968.84,0.00041369,31]
[325415713,1714855862530,-613.13,0.00041369,31]
[325415714,1714855862540,-1026.6,0.00041369,31]
[325415715,1714855862551,-501.49,0.00041369,31]
[325415716,1714855862560,-500.0,0.00041369,31]
[325415717,1714855862569,-503.68428005,0.00041369,31]
[325415718,1714855862579,-1303.51,0.00041369,31]
[325415719,1714855862588,-500.0,0.00041369,2]
[325415720,1714855862597,-500.0,0.00041369,31]
[325415721,1714855862607,-500.0,0.00041369,31]
[325415722,1714855862616,-592.67,0.00041369,31]
[325415723,1714855862625,-1376.8,0.00041369,31]
[325415724,1714855862635,-1839.02,0.00041369,31]
[325415725,1714855862644,-500.0,0.00041369,2]
[325415726,1714855862654,-1772.29,0.00041369,31]
[325415727,1714855862664,-500.0,0.00041369,31]
[325415728,1714855862673,-500.0,0.00041369,31]
[325415729,1714855862683,-1375.36,0.00041369,31]
[325415730,1714855862693,-500.0,0.00041369,31]
[325415731,1714855862702,-500.0,0.00041369,31]
[325415732,1714855862712,-500.0,0.00041369,31]
[325415733,1714855862723,-500.0,0.00041369,31]
[325415734,1714855862732,-500.0,0.00041369,31]
[325415735,1714855862742,-500.0,0.00041369,31]
[325415736,1714855862751,-500.0,0.00041369,31]
[325415737,1714855862761,-2110.84,0.00041369,31]
[325415738,1714855862770,-1573.38,0.00041369,31]
[325415739,1714855862781,-500.0,0.00041369,31]
[325415740,1714855862796,-1831.45,0.00041369,31]
[325415741,1714855862805,-500.0,0.00041369,31]
[325415742,1714855862815,-1193.71,0.00041369,31]
[325415743,1714855862826,-1149.24,0.00041369,31]
[325415744,1714855862836,-1043.38,0.00041369,31]
[325415745,1714855862846,-500.0,0.00041369,31]
[325415746,1714855862855,-500.0,0.00041369,31]
[325415747,1714855862965,-344.80571845,0.00041369,31]
[325415748,1714855862975,-1263.03,0.00041369,31]
[325415749,1714855862983,-500.0,0.00041369,31]
[325415750,1714855862992,-500.0,0.00041369,31]
[325415751,1714855863001,-611.53,0.00041369,31]
[325415752,1714855863011,-500.0,0.00041369,31]
[325415753,1714855863021,-500.0,0.00041369,31]
[325415754,1714855863030,-500.0,0.00041369,31]
[325415755,1714855863040,-573.71,0.00041369,31]
[325415756,1714855863050,-1879.08,0.00041369,31]
[325415757,1714855863060,-1479.96,0.00041369,31]
[325415758,1714855863069,-500.0,0.00041369,31]
[325415759,1714855863078,-366.38463145,0.00041369,31]
[325415760,1714855863087,-1927.98,0.00041369,31]
[325415761,1714855863098,-1626.79,0.00041369,31]
[325415762,1714855863107,-500.0,0.00041369,31]
[325415763,1714855863116,-500.0,0.00041369,31]
[325415764,1714855863125,-1809.23,0.00041369,31]
[325415765,1714855863135,-565.43589682,0.00041369,31]
[325415766,1714855863145,-1117.74,0.00041369,31]
[325415767,1714855863154,-500.0,0.00041369,31]
[325415768,1714855863164,-500.0,0.00041369,31]
[325415769,1714855863173,-1665.36,0.00041369,31]
[325415770,1714855863183,-262.72364155,0.00041369,31]
[325415771,1714855863193,-1196.81,0.00041369,31]
[325415772,1714855863204,-500.0,0.00041369,31]
[325415773,1714855863213,-1279.2,0.00041369,31]
[325415774,1714855863222,-751.92,0.00041369,31]
[325415775,1714855863232,-500.0,0.00041369,31]
[325415776,1714855863241,-1095.98,0.00041369,31]
[325415777,1714855863250,-500.0,0.00041369,31]
[325415778,1714855863260,-1682.65,0.00041369,31]
[325415779,1714855863269,-1066.39,0.00041369,31]
[325415780,1714855863281,-500.0,0.00041369,31]
[325415781,1714855863291,-1445.34,0.00041369,31]
[325415782,1714855863300,-800.76,0.00041369,31]
[325415783,1714855863310,-2000.0,0.00041369,30]
[325415784,1714855863319,-681.76,0.00041369,31]
[325415785,1714855863328,-500.0,0.00041369,31]
[325415786,1714855863337,-500.0,0.00041369,31]
[325415787,1714855863346,-500.0,0.00041369,31]
[325415788,1714855863355,-500.0,0.00041369,31]
[325415789,1714855863365,-500.0,0.00041369,31]
[325415790,1714855863375,-1474.39,0.00041369,31]
[325415791,1714855863384,-500.0,0.00041369,31]
[325415792,1714855863394,-500.0,0.00041369,31]
[325415793,1714855863404,-2661.52,0.00041369,31]
[325415794,1714855863414,-500.0,0.00041369,31]
[325415795,1714855863423,-500.0,0.00041369,31]
[325415796,1714855863433,-500.0,0.00041369,31]
[325415797,1714855863447,-500.0,0.00041369,31]
[325415798,1714855863456,-500.0,0.00041369,31]
[325415799,1714855863466,-628.66,0.00041369,31]
[325415800,1714855863475,-1391.79,0.00041369,31]
[325415801,1714855863485,-500.0,0.00041369,31]
[325415802,1714855863495,-500.0,0.00041369,31]
[325415803,1714855863504,-500.0,0.00041369,31]
[325415804,1714855863514,-856.89,0.00041369,31]
[325415805,1714855863523,-500.0,0.00041369,31]
[325415806,1714855863532,-2642.08,0.00041369,31]
[325415807,1714855863541,-1276.74,0.00041369,31]
[325415808,1714855863552,-507.21085526,0.00041369,31]
[325415809,1714855863562,-1884.3,0.00041369,31]
[325415810,1714855863571,-802.57,0.00041369,31]
[325415811,1714855863581,-500.0,0.00041369,31]
[325415812,1714855863590,-500.0,0.00041369,31]
[325415813,1714855863599,-845.48,0.00041369,31]
[325415814,1714855863608,-617.33,0.00041369,31]
[325415815,1714855863617,-630.13,0.00041369,31]
[325415816,1714855863626,-1277.43,0.00041369,31]
[325415817,1714855863636,-500.0,0.00041369,2]
[325415818,1714855863645,-1196.42,0.00041369,31]
[325415819,1714855863655,-2208.59,0.00041369,31]
[325415820,1714855863665,-500.0,0.00041369,31]
[325415821,1714855863674,-632.34,0.00041369,31]
[325415822,1714855863684,-690.72,0.00041369,31]
[325415823,1714855863696,-717.48,0.00041369,31]
[325415824,1714855863706,-500.0,0.00041369,31]
[325415825,1714855863716,-2205.69,0.00041369,31]
[325415826,1714855863725,-1460.57,0.00041369,31]
[325415827,1714855863734,-500.0,0.00041369,31]
[325415828,1714855863744,-500.0,0.00041369,31]
[325415829,1714855863753,-500.0,0.00041369,31]
[325415830,1714855863763,-1239.66,0.00041369,31]
[325415831,1714855863772,-500.0,0.00041369,31]
[325415832,1714855863782,-2076.17,0.00041369,31]
[325415833,1714855863794,-1796.68,0.00041369,31]
[325415834,1714855863803,-2438.83,0.00041369,31]
[325415835,1714855863812,-1171.54,0.00041369,31]
[325415836,1714855863823,-500.0,0.00041369,31]
[325415837,1714855863832,-1311.31,0.00041369,31]
[325415838,1714855863842,-952.46,0.00041369,31]
[325415839,1714855863852,-500.0,0.00041369,31]
[325415840,1714855863862,-500.0,0.00041369,31]
[325415841,1714855863874,-500.0,0.00041369,31]
[325415842,1714855863883,-1217.95,0.00041369,31]
[325415843,1714855863893,-500.0,0.00041369,31]
[325415844,1714855863903,-512.97339215,0.00041369,31]
[325415845,1714855863913,-500.0,0.00041369,31]
[325415846,1714855863922,-1879.01,0.00041369,31]
[325415847,1714855863931,-1470.85,0.00041369,31]
[325415848,1714855863942,-483.53611453,0.00041369,31]
[325415849,1714855863951,-500.0,0.00041369,31]
[325415850,1714855863961,-500.0,0.00041369,31]
[325415851,1714855863971,-500.0,0.00041369,31]
[325415852,1714855863980,-1332.27,0.00041369,31]
[325415853,1714855863990,-500.0,0.00041369,31]
[325415854,1714855864000,-1289.43,0.00041369,31]
[325415855,1714855864017,-500.0,0.00041369,31]
[325415856,1714855864034,-500.0,0.00041369,31]
[325415857,1714855864047,-5000.0,0.00041369,31]
[325415858,1714855864057,-500.0,0.00041369,31]
[325415859,1714855864067,-1304.48,0.00041369,31]
[325415860,1714855864076,-658.07,0.00041369,31]
[325415861,1714855864086,-500.0,0.00041369,31]
[325415862,1714855864095,-1044.0,0.00041369,31]
[325415863,1714855864105,-500.0,0.00041369,31]
[325415864,1714855864115,-1347.28,0.00041369,31]
[325415865,1714855864125,-553.82101091,0.00041369,31]
[325415866,1714855864134,-500.0,0.00041369,31]
[325415867,1714855864144,-500.0,0.00041369,31]
[325415868,1714855864154,-1297.41,0.00041369,31]
[325415869,1714855864164,-500.0,0.00041369,31]
[325415870,1714855864173,-500.0,0.00041369,31]
[325415871,1714855864182,-500.0,0.00041369,31]
[325415872,1714855864193,-1943.89,0.00041369,31]
[325415873,1714855864202,-500.0,0.00041369,31]
[325415874,1714855864212,-500.0,0.00041369,31]
[325415875,1714855864222,-1071.25,0.00041369,31]
[325415876,1714855864231,-1261.35,0.00041369,31]
[325415877,1714855864241,-2791.77,0.00041369,31]
[325415878,1714855864250,-500.0,0.00041369,31]
[325415879,1714855864261,-500.0,0.00041369,31]
[325415880,1714855864271,-698.08,0.00041369,31]
[325415881,1714855864280,-500.0,0.00041369,31]
[325415882,1714855864289,-613.87,0.00041369,31]
[325415883,1714855864299,-157.42677071,0.00041369,31]
[325415884,1714855864308,-500.0,0.00041369,31]
[325415885,1714855864317,-500.0,0.00041369,31]
[325415886,1714855864326,-3138.9,0.00041369,31]
[325415887,1714855864336,-1103.36,0.00041369,31]
[325415888,1714855864344,-500.0,0.00041369,31]
[325415889,1714855864354,-500.0,0.00041369,31]
[325415890,1714855864363,-500.0,0.00041369,31]
[325415891,1714855864372,-1509.24,0.00041369,31]
[325415892,1714855864382,-1775.12,0.00041369,31]
[325415893,1714855864391,-500.0,0.00041369,31]
[325415894,1714855864400,-500.0,0.00041369,31]
[325415895,1714855864409,-1009.23,0.00041369,31]
[325415896,1714855864418,-500.0,0.00041369,31]
[325415897,1714855864428,-500.0,0.00041369,31]
[325415898,1714855864437,-511.21,0.00041369,31]
[325415899,1714855864447,-500.0,0.00041369,31]
[325415900,1714855864456,-1383.59,0.00041369,31]
[325415901,1714855864465,-500.0,0.00041369,31]
[325415902,1714855864474,-500.0,0.00041369,31]
[325415903,1714855864484,-638.77,0.00041369,31]
[325415904,1714855864493,-1198.08,0.00041369,31]
[325415905,1714855864502,-500.0,0.00041369,31]
[325415906,1714855864511,-1145.69,0.00041369,31]
[325415907,1714855864520,-500.0,0.00041369,31]
[325415908,1714855864529,-500.0,0.00041369,31]
[325415909,1714855864538,-500.0,0.00041369,31]
[325415910,1714855864547,-500.0,0.00041369,31]
[325415911,1714855864556,-807.43,0.00041369,31]
[325415912,1714855864565,-500.0,0.00041369,31]
[325415913,1714855864574,-500.0,0.00041369,31]
[325415914,1714855864583,-2244.52,0.00041369,31]
[325415915,1714855864593,-1499.25,0.00041369,31]
[325415916,1714855864603,-1142.16,0.00041369,31]
[325415917,1714855864613,-500.0,0.00041369,31]
[325415918,1714855864623,-500.0,0.00041369,31]
[325415919,1714855864632,-689.49,0.00041369,31]
[325415920,1714855864642,-500.0,0.00041369,31]
[325415921,1714855864652,-1152.74,0.00041369,31]
[325415922,1714855864662,-500.0,0.00041369,31]
[325415923,1714855864671,-500.0,0.00041369,31]
[325415924,1714855864680,-1028.98,0.00041369,31]
[325415925,1714855864691,-500.0,0.00041369,31]
[325415926,1714855864700,-500.0,0.00041369,31]
[325415927,1714855864708,-2033.8,0.00041369,31]
[325415928,1714855864717,-500.0,0.00041369,31]
[325415929,1714855864727,-1097.76,0.00041369,31]
[325415930,1714855864736,-500.0,0.00041369,31]
[325415931,1714855864745,-500.0,0.00041369,31]
[325415932,1714855864754,-1515.87,0.00041369,31]
[325415933,1714855864763,-527.53,0.00041369,31]
[325415934,1714855864772,-500.0,0.00041369,31]
[325415935,1714855864781,-213.49512968,0.00041369,31]
[325415936,1714855864795,-501.27461102,0.00041369,31]
[325415937,1714855864804,-500.0,0.00041369,31]
[325415938,1714855864813,-500.0,0.00041369,31]
[325415939,1714855864823,-1408.76,0.00041369,31]
[325415940,1714855864834,-1000.0,0.00041369,31]
[325415941,1714855864843,-617.01,0.00041369,31]
[325415942,1714855864852,-1969.99,0.00041369,31]
[325415943,1714855864862,-500.0,0.00041369,31]
[325415944,1714855864871,-500.0,0.00041369,31]
[325415945,1714855864881,-1134.82,0.00041369,31]
[325415946,1714855864890,-1414.47,0.00041369,31]
[325415947,1714855864899,-1834.89,0.00041369,31]
[325415948,1714855864908,-500.0,0.00041369,31]
[325415949,1714855864918,-500.0,0.00041369,31]
[325415950,1714855864926,-500.0,0.00041369,31]
[325415951,1714855864936,-500.0,0.00041369,31]
[325415952,1714855864947,-1292.36,0.00041369,31]
[325415953,1714855864956,-2855.25,0.00041369,2]
[325415954,1714855864966,-500.0,0.00041369,31]
[325415955,1714855864975,-500.0,0.00041369,31]
[325415956,1714855864984,-500.0,0.00041369,31]
[325415957,1714855864994,-763.87,0.00041369,31]
[325415958,1714855865004,-1307.95,0.00041369,31]
[325415959,1714855865013,-1420.98,0.00041369,31]
[325415960,1714855865023,-500.0,0.00041369,31]